lending/lending_fUSD_20260312
["ID","MTS","AMOUNT","RATE_DAILY","PERIOD"]
[408249746,1773315037752,-500.0,0.00017539,2]
[408249747,1773315037762,-500.0,0.00017539,2]
[408249748,1773315037771,-500.0,0.00017539,2]
[408249749,1773315037781,-500.0,0.00017539,2]
[408249750,1773315037790,-500.0,0.00017539,2]
[408249751,1773315037799,-500.0,0.00017539,2]
[408249752,1773315037808,-500.0,0.00017539,2]
[408249753,1773315037818,-500.0,0.00017539,2]
[408249754,1773315037827,-500.0,0.00017539,2]
[408249755,1773315037837,-500.0,0.00017539,2]
[408249756,1773315037846,-500.0,0.00017539,2]
[408249757,1773315037855,-500.0,0.00017539,2]
[408249758,1773315037864,-500.0,0.00017539,2]
[408249759,1773315037874,-500.0,0.00017539,2]
[408249760,1773315037888,-500.0,0.00017539,2]
[408249761,1773315037897,-500.0,0.00017539,2]
[408249762,1773315037906,-500.0,0.00017539,2]
[408249763,1773315037915,-500.0,0.00017539,2]
[408249764,1773315037926,-500.0,0.00017539,2]
[408249765,1773315037936,-500.0,0.00017539,2]
[408249766,1773315037945,-500.0,0.00017539,2]
[408249767,1773315037957,-500.0,0.00017539,2]
[408249768,1773315037967,-500.0,0.00017539,2]
[408249769,1773315037976,-500.0,0.00017539,2]
[408249770,1773315037986,-500.0,0.00017539,2]
[408249771,1773315037995,-500.0,0.00017539,2]
[408249772,1773315038004,-500.0,0.00017539,2]
[408249773,1773315038014,-500.0,0.00017539,2]
[408249774,1773315038023,-500.0,0.00017539,2]
[408249775,1773315038032,-500.0,0.00017539,2]
[408249776,1773315038041,-500.0,0.00017539,2]
[408249778,1773315038051,-500.0,0.00017539,2]
[408249780,1773315038061,-500.0,0.00017539,2]
[408249782,1773315038070,-500.0,0.00017539,2]
[408249783,1773315038080,-500.0,0.00017539,2]
[408249784,1773315038089,-500.0,0.00017539,2]
[408249785,1773315038098,-285.41172907,0.00017539,2]
[408249786,1773315038108,-500.0,0.00017539,2]
[408249787,1773315038118,-500.0,0.00017539,2]
[408249788,1773315038127,-500.0,0.00017539,2]
[408249789,1773315038136,-500.0,0.00017539,2]
[408249790,1773315038145,-500.0,0.00017539,2]
[408249791,1773315038155,-500.0,0.00017539,2]
[408249792,1773315038165,-500.0,0.00017539,2]
[408249793,1773315038175,-500.0,0.00017539,2]
[408249794,1773315038184,-500.0,0.00017539,2]
[408249795,1773315038194,-256.17008248,0.00017539,2]
[408249796,1773315038203,-500.0,0.00017539,2]
[408249797,1773315038213,-500.0,0.00017539,2]
[408249798,1773315038224,-500.0,0.00017539,2]
[408249799,1773315038234,-500.0,0.00017539,2]
[408249800,1773315038243,-500.0,0.00017539,2]
[408249801,1773315038253,-500.0,0.00017539,2]
[408249802,1773315038263,-500.0,0.00017539,2]
[408249803,1773315038272,-515.12356361,0.00017539,2]
[408249804,1773315038282,-500.0,0.00017539,2]
[408249805,1773315038292,-500.0,0.00017539,2]
[408249806,1773315038302,-500.0,0.00017539,2]
[408249807,1773315038312,-507.45956471,0.00017539,2]
[408249808,1773315038321,-500.0,0.00017539,2]
[408249809,1773315038330,-163.30530329,0.00017539,2]
[408249810,1773315038345,-336.69469671,0.00017539,2]
[408249811,1773315038354,-500.0,0.00017539,2]
[408249812,1773315038364,-630.81055911,0.00017539,2]
[408249813,1773315038373,-500.0,0.00017539,2]
[408249814,1773315038382,-500.0,0.00017539,2]
[408249815,1773315038392,-500.0,0.00017539,2]
[408249816,1773315038401,-500.0,0.00017539,2]
[408249817,1773315038412,-500.0,0.00017539,2]
[408249818,1773315038422,-545.81673894,0.00017539,2]
[408249820,1773315038431,-500.0,0.00017539,2]
[408249822,1773315038441,-500.0,0.00017539,2]
[408249824,1773315038450,-503.55073109,0.00017539,2]
[408249826,1773315038460,-500.0,0.00017539,2]
[408249828,1773315038470,-500.0,0.00017539,2]
[408249830,1773315038479,-500.0,0.00017539,2]
[408249832,1773315038489,-500.0,0.00017539,2]
[408249834,1773315038498,-500.0,0.00017539,2]
[408249836,1773315038507,-500.0,0.00017539,2]
[408249838,1773315038517,-500.0,0.00017539,2]
[408249840,1773315038526,-500.0,0.00017539,2]
[408249843,1773315038537,-500.0,0.00017539,2]
[408249845,1773315038546,-500.0,0.00017539,2]
[408249847,1773315038557,-464.92077009,0.00017539,2]
[408249849,1773315038566,-500.0,0.00017539,2]
[408249851,1773315038576,-500.0,0.00017539,2]
[408249853,1773315038586,-500.0,0.00017539,2]
[408249855,1773315038596,-500.0,0.00017539,2]
[408249857,1773315038606,-500.0,0.00017539,2]
[408249859,1773315038615,-500.0,0.00017539,2]
[408249861,1773315038624,-500.0,0.00017539,2]
[408249863,1773315038634,-586.04621402,0.00017539,2]
[408249865,1773315038644,-500.0,0.00017539,2]
[408249867,1773315038653,-500.0,0.00017539,2]
[408249869,1773315038663,-500.0,0.00017539,2]
[408249871,1773315038673,-500.0,0.00017539,2]
[408249873,1773315038683,-500.0,0.00017539,2]
[408249875,1773315038692,-500.0,0.00017539,2]
[408249877,1773315038702,-548.09996795,0.00017539,2]
[408249879,1773315038712,-500.0,0.00017539,2]
[408249881,1773315038721,-500.0,0.00017539,2]
[408249883,1773315038732,-540.49254031,0.00017539,2]
[408249885,1773315038742,-500.0,0.00017539,2]
[408249887,1773315038753,-500.0,0.00017539,2]
[408249889,1773315038763,-500.0,0.00017539,2]
[408249891,1773315038773,-500.0,0.00017539,2]
[408249893,1773315038782,-500.0,0.00017539,2]
[408249895,1773315038792,-500.0,0.00017539,2]
[408249897,1773315038801,-500.0,0.00017539,2]
[408249899,1773315038811,-529.61791857,0.00017539,2]
[408249901,1773315038820,-500.0,0.00017539,2]
[408249903,1773315038830,-500.0,0.00017539,2]
[408249904,1773315038840,-500.0,0.00017539,2]
[408249905,1773315038849,-500.0,0.00017539,2]
[408249906,1773315038859,-484.25426362,0.00017539,2]
[408249907,1773315038868,-500.0,0.00017539,2]
[408249908,1773315038883,-500.0,0.00017539,2]
[408249909,1773315038892,-500.0,0.00017539,2]
[408249910,1773315038901,-500.0,0.00017539,2]
[408249911,1773315038910,-500.0,0.00017539,2]
[408249912,1773315038920,-500.0,0.00017539,2]
[408249913,1773315038929,-500.0,0.00017539,2]
[408249914,1773315038938,-500.0,0.00017539,2]
[408249915,1773315038947,-532.22936309,0.00017539,2]
[408249916,1773315038960,-500.0,0.00017539,2]
[408249917,1773315038969,-500.0,0.00017539,2]
[408249918,1773315038978,-426.36800609,0.00017539,2]
[408249919,1773315038987,-500.0,0.00017539,2]
[408249920,1773315038997,-500.0,0.00017539,2]
[408249921,1773315039007,-500.0,0.00017539,2]
[408249922,1773315039016,-500.0,0.00017539,2]
[408249923,1773315039025,-500.0,0.00017539,2]
[408249924,1773315039034,-500.0,0.00017539,2]
[408249925,1773315039044,-500.0,0.00017539,2]
[408249926,1773315039054,-500.0,0.00017539,2]
[408249927,1773315039063,-374.26461894,0.00017539,2]
[408249928,1773315039072,-6721.07155564,0.0001754,2]
[408249929,1773315039084,-22054.57160395,0.0001754,2]
[408249930,1773315039118,-1146.43337587,0.0001754,2]
[408249931,1773315039128,-537.97245266,0.0001754,2]
[408249932,1773315039139,-1363.17503185,0.0001754,2]
[408249933,1773315039150,-1675.51726259,0.0001754,2]
[408249934,1773315039739,2382.90097065,0.00022862,30]
[408249935,1773315040131,-693.56,0.00016254,3]
[408249936,1773315040140,-15.37,0.0001754,2]
[408249937,1773315040151,-847.0,0.0001754,2]
[408249938,1773315040171,-4293.41839997,0.0001754,2]
[408249939,1773315040191,-585.46002988,0.0001754,2]
[408249940,1773315040202,-956.1785563,0.0001754,2]
[408249941,1773315040213,-436727.54661543,0.0001754,2]
[408249942,1773315040233,-6543.9,0.0001754,2]
[408249944,1773315040245,-558.69299275,0.0001754,2]
[408249950,1773315040535,-50457.31219851,0.0001754,2]
[408249951,1773315040544,-99632.3460203,0.0001754,2]
[408249952,1773315040553,-1167.8229264,0.0001754,2]
[408249953,1773315040562,-16921.8861291,0.0001754,2]
[408249954,1773315040571,-151.0,0.0001754,2]
[408249955,1773315040580,-151.0,0.0001754,2]
[408249956,1773315040589,-7469.4380851,0.0001754,2]
[408249957,1773315040598,-193.201322,0.0001754,2]
[408249958,1773315040607,-193.201322,0.0001754,2]
[408249959,1773315040616,-193.201322,0.0001754,2]
[408249960,1773315040625,-193.201322,0.0001754,2]
[408249961,1773315040634,-151.0,0.0001754,2]
[408249962,1773315040643,-151.0,0.0001754,2]
[408249963,1773315040652,-151.0,0.0001754,2]
[408249964,1773315040662,-151.0,0.0001754,2]
[408249965,1773315040671,-151.0,0.0001754,2]
[408249966,1773315040679,-227.624097,0.0001754,2]
[408249967,1773315040688,-227.624097,0.0001754,2]
[408249968,1773315040697,-227.624097,0.0001754,2]
[408249969,1773315040706,-227.624097,0.0001754,2]
[408249970,1773315040715,-151.0,0.0001754,2]
[408249971,1773315040724,-151.0,0.0001754,2]
[408249972,1773315040734,-151.0,0.0001754,2]
[408249973,1773315040744,-203.429619,0.0001754,2]
[408249974,1773315040753,-203.429619,0.0001754,2]
[408249975,1773315040762,-203.429619,0.0001754,2]
[408249976,1773315040773,-203.429619,0.0001754,2]
[408249977,1773315040783,-151.0,0.0001754,2]
[408249978,1773315040791,-151.0,0.0001754,2]
[408249979,1773315040800,-4998.48,0.0001754,2]
[408249980,1773315040809,-500.0,0.00017541,2]
[408249981,1773315040819,-1495.38034996,0.00017541,2]
[408249982,1773315040827,-420.0,0.00017564,2]
[408249983,1773315040836,-190.0,0.00017564,2]
[408249984,1773315040845,-500.0,0.00017573,2]
[408249985,1773315040854,-283.69039474,0.00017573,2]
[408249986,1773315040863,-500.0,0.00017573,2]
[408249987,1773315040873,-500.0,0.00017573,2]
[408249988,1773315040886,-500.0,0.00017573,2]
[408249989,1773315040895,-500.0,0.00017573,2]
[408249990,1773315040904,-500.0,0.00017573,2]
[408249991,1773315040915,-502.44343779,0.00017573,2]
[408249992,1773315040926,-500.0,0.00017573,2]
[408249993,1773315040935,-500.0,0.00017573,2]
[408249994,1773315040944,-500.0,0.00017634,2]
[408249995,1773315040954,-1083.42,0.00017634,2]
[408249996,1773315040963,-500.0,0.00017673,2]
[408249998,1773315040972,-500.0,0.00017673,2]
[408249999,1773315040981,-9000.0,0.00017686,2]
[408250000,1773315040990,-151.0,0.00017686,2]
[408250001,1773315040999,-500.0,0.00017686,2]
[408250002,1773315041008,-500.0,0.00017686,2]
[408250003,1773315041017,-250.0,0.00017686,2]
[408250005,1773315041026,-1281.75768589,0.00017686,2]
[408250006,1773315041036,-9211.34798985,0.00017686,2]
[408250007,1773315041046,-500.0,0.00017686,2]
[408250008,1773315041055,-250.0,0.00017686,2]
[408250009,1773315041064,-500.0,0.00017686,2]
[408250010,1773315041073,-250.0,0.00017686,2]
[408250011,1773315041082,-250.0,0.00017686,2]
[408250012,1773315041091,-500.0,0.00017686,2]
[408250013,1773315041100,-250.0,0.00017686,2]
[408250014,1773315041109,-500.0,0.00017686,2]
[408250015,1773315041118,-250.0,0.00017686,2]
[408250016,1773315041127,-500.0,0.00017686,2]
[408250017,1773315041136,-250.0,0.00017686,2]
[408250018,1773315041148,-500.0,0.00017686,2]
[408250019,1773315041157,-500.0,0.00017686,2]
[408250020,1773315041166,-250.0,0.00017686,2]
[408250021,1773315041175,-500.0,0.00017686,2]
[408250022,1773315041184,-500.0,0.00017686,2]
[408250023,1773315041193,-1500.0,0.00017686,2]
[408250024,1773315041203,-250.0,0.00017686,2]
[408250025,1773315041212,-500.0,0.00017686,2]
[408250026,1773315041222,-500.0,0.00017686,2]
[408250027,1773315041232,-1500.0,0.00017686,2]
[408250028,1773315041242,-250.0,0.00017686,2]
[408250029,1773315041254,-500.0,0.00017686,2]
[408250030,1773315041265,-500.0,0.00017686,2]
[408250031,1773315041275,-250.0,0.00017686,2]
[408250032,1773315041285,-1500.0,0.00017686,2]
[408250033,1773315041294,-250.0,0.00017686,2]
[408250034,1773315041303,-250.0,0.00017686,2]
[408250035,1773315041312,-500.0,0.00017686,2]
[408250036,1773315041321,-1500.0,0.00017686,2]
[408250037,1773315041331,-500.0,0.00017686,2]
[408250038,1773315041340,-250.0,0.00017686,2]
[408250039,1773315041349,-250.0,0.00017686,2]
[408250040,1773315041359,-500.0,0.00017686,2]
[408250041,1773315041368,-500.0,0.00017686,2]
[408250042,1773315041377,-1500.0,0.00017686,2]
[408250043,1773315041386,-250.0,0.00017686,2]
[408250044,1773315041399,-500.0,0.00017686,2]
[408250045,1773315041409,-1500.0,0.00017686,2]
[408250046,1773315041418,-250.0,0.00017686,2]
[408250047,1773315041427,-500.0,0.00017686,2]
[408250048,1773315041436,-500.0,0.00017686,2]
[408250049,1773315041446,-1500.0,0.00017686,2]
[408250050,1773315041457,-250.0,0.00017686,2]
[408250051,1773315041467,-500.0,0.00017686,2]
[408250052,1773315041477,-500.0,0.00017686,2]
[408250053,1773315041486,-1500.0,0.00017686,2]
[408250054,1773315041495,-250.0,0.00017686,2]
[408250055,1773315041505,-500.0,0.00017686,2]
[408250056,1773315041514,-1500.0,0.00017686,2]
[408250057,1773315041523,-500.0,0.00017686,2]
[408250058,1773315041532,-250.0,0.00017686,2]
[408250059,1773315041542,-500.0,0.00017686,2]
[408250060,1773315041551,-1500.0,0.00017686,2]
[408250061,1773315041560,-500.0,0.00017686,2]
[408250062,1773315041569,-250.0,0.00017686,2]
[408250063,1773315041578,-500.0,0.00017686,2]
[408250064,1773315041588,-1500.0,0.00017686,2]
[408250065,1773315041597,-500.0,0.00017686,2]
[408250066,1773315041606,-500.0,0.00017686,2]
[408250067,1773315041615,-250.0,0.00017686,2]
[408250068,1773315041625,-1500.0,0.00017686,2]
[408250069,1773315041634,-500.0,0.00017686,2]
[408250070,1773315041643,-250.0,0.00017686,2]
[408250071,1773315041652,-500.0,0.00017686,2]
[408250072,1773315041661,-578.20924308,0.00017686,2]
[408250073,1773315041671,-500.0,0.00017686,2]
[408250074,1773315041680,-250.0,0.00017686,2]
[408250075,1773315041689,-500.0,0.00017686,2]
[408250076,1773315041698,-500.0,0.00017686,2]
[408250077,1773315041708,-500.0,0.00017686,2]
[408250078,1773315041717,-174.61919141,0.00017686,2]
[408250079,1773315041727,-250.0,0.00017686,2]
[408250080,1773315041736,-250.0,0.00017686,2]
[408250081,1773315041745,-250.0,0.00017686,2]
[408250082,1773315041755,-250.0,0.00017686,2]
[408250083,1773315041764,-250.0,0.00017686,2]
[408250084,1773315041773,-250.0,0.00017686,2]
[408250085,1773315041782,-151.0,0.00017686,2]
[408250086,1773315041791,-250.0,0.00017686,2]
[408250087,1773315041800,-1000.0,0.00017686,2]
[408250088,1773315041810,-156.587,0.00017686,2]
[408250089,1773315041819,-200.0,0.00017686,2]
[408250090,1773315041829,-250.0,0.00017686,2]
[408250091,1773315041838,-584.42472324,0.00017686,2]
[408250092,1773315041848,-250.0,0.00017686,2]
[408250093,1773315041858,-193.63575869,0.00017686,2]
[408250094,1773315041867,-250.0,0.00017686,2]
[408250095,1773315041878,-250.0,0.00017686,2]
[408250096,1773315041887,-250.0,0.00017686,2]
[408250097,1773315041897,-151.0,0.00017686,2]
[408250098,1773315041906,-500.0,0.00017686,2]
[408250099,1773315041919,-753.51194101,0.00017686,2]
[408250100,1773315041928,-500.0,0.00017686,2]
[408250101,1773315041937,-500.0,0.00017686,2]
[408250102,1773315041946,-500.0,0.00017686,2]
[408250103,1773315041955,-262.90206542,0.00017686,2]
[408250104,1773315041964,-500.0,0.00017686,2]
[408250105,1773315041973,-500.0,0.00017686,2]
[408250106,1773315041982,-500.0,0.00017686,2]
[408250107,1773315041990,-500.0,0.00017686,2]
[408250108,1773315041999,-500.0,0.00017686,2]
[408250109,1773315042008,-500.0,0.00017686,2]
[408250110,1773315042017,-500.0,0.00017686,2]
[408250111,1773315042026,-500.0,0.00017686,2]
[408250112,1773315042035,-9000.0,0.00017741,2]
[408250113,1773315042044,-151.0,0.00017741,2]
[408250114,1773315042053,-272.62944185,0.00017741,2]
[408250115,1773315042062,-500.0,0.00017748,2]
[408250116,1773315042071,-9000.0,0.00017796,2]
[408250117,1773315042080,-151.0,0.00017796,2]
[408250118,1773315042090,-193.29882183,0.00017796,2]
[408250119,1773315042099,-800.0,0.00017808,2]
[408250120,1773315042108,-219.0,0.00017816,2]
[408250121,1773315042119,-630.0,0.00017829,2]
[408250122,1773315042128,-48306.71665856,0.00017829,2]
[408250123,1773315042137,-9000.0,0.00017851,2]
[408250124,1773315042147,-151.0,0.00017851,2]
[408250125,1773315042156,-200.0,0.00017899,2]
[408250126,1773315042166,-1015.4010762,0.000179,2]
[408250127,1773315042175,-1355.98147679,0.000179,2]
[408250128,1773315042184,-1355.98147677,0.000179,2]
[408250129,1773315042193,-1355.98147677,0.000179,2]
[408250130,1773315042202,-1355.98147677,0.000179,2]
[408250131,1773315042213,-319.4119035,0.000179,2]
[408250132,1773315042230,-319.41190349,0.000179,2]
[408250133,1773315042239,-319.41190349,0.000179,2]
[408250134,1773315042248,-9000.0,0.00017906,2]
[408250135,1773315042257,-151.0,0.00017906,2]
[408250136,1773315042266,-500.0,0.00017908,2]
[408250137,1773315042275,-1083.42,0.00017908,2]
[408250138,1773315042284,-999.46578139,0.00017916,2]
[408250139,1773315042293,-2000.0,0.00017916,2]
[408250140,1773315042302,-1360.72006406,0.00017916,2]
[408250141,1773315042311,-619.71855644,0.00017916,2]
[408250142,1773315042321,-2000.0,0.00017916,2]
[408250143,1773315042330,-219.24219,0.00017953,2]
[408250144,1773315042339,-9000.0,0.00017961,2]
[408250145,1773315042348,-151.0,0.00017961,2]
[408250146,1773315042357,-500.0,0.00017986,2]
[408250147,1773315042366,-728.88,0.00017997,2]
[408250148,1773315042376,-9000.0,0.00018016,2]
[408250149,1773315042385,-151.0,0.00018016,2]
[408250150,1773315042394,-300.0,0.00018019,2]
[408250151,1773315042403,-31622.04,0.0001802,2]
[408250152,1773315042414,-246.55,0.00018056,2]
[408250153,1773315042423,-9000.0,0.00018071,2]
[408250154,1773315042432,-151.0,0.00018071,2]
[408250155,1773315042442,-1600.0,0.00018075,2]
[408250156,1773315042451,-1000.0,0.00018121,2]
[408250157,1773315042459,-1000.0,0.00018121,2]
[408250158,1773315042470,-878.0,0.00018122,2]
[408250159,1773315042479,-9000.0,0.00018126,2]
[408250160,1773315042488,-151.0,0.00018126,2]
[408250161,1773315042497,-151.0,0.00018181,2]
[408250162,1773315042506,-500.0,0.00018182,2]
[408250163,1773315042516,-1083.42,0.00018182,2]
[408250164,1773315042526,-2000.0,0.00018196,2]
[408250165,1773315042535,-181.08010149,0.00018234,2]
[408250166,1773315042545,-200.0,0.00018234,2]
[408250167,1773315042554,-151.0,0.00018236,2]
[408250168,1773315042564,-48306.71665856,0.00018244,2]
[408250169,1773315042573,-500.0,0.00018259,2]
[408250170,1773315042583,-151.0,0.0001826,2]
[408250171,1773315042593,-151.0,0.0001826,2]
[408250172,1773315042602,-151.0,0.0001826,2]
[408250173,1773315042612,-151.0,0.00018291,2]
[408250174,1773315042622,-151.0,0.00018299,2]
[408250175,1773315042631,-193.201322,0.00018299,2]
[408250176,1773315042641,-193.201322,0.00018299,2]
[408250177,1773315042650,-193.201322,0.00018299,2]
[408250178,1773315042660,-193.201322,0.00018299,2]
[408250179,1773315042670,-151.0,0.00018356,2]
[408250180,1773315042679,-151.0,0.00018356,2]
[408250181,1773315042688,-227.624097,0.00018356,2]
[408250182,1773315042697,-227.624097,0.00018356,2]
[408250183,1773315042708,-227.624097,0.00018356,2]
[408250184,1773315042718,-227.624097,0.00018356,2]
[408250185,1773315042727,-151.0,0.00018356,2]
[408250186,1773315042736,-151.0,0.00018356,2]
[408250187,1773315042745,-151.0,0.00018356,2]
[408250188,1773315042755,-203.429619,0.00018356,2]
[408250189,1773315042764,-203.429619,0.00018356,2]
[408250190,1773315042774,-203.429619,0.00018356,2]
[408250191,1773315042783,-203.429619,0.00018356,2]
[408250192,1773315042794,-151.0,0.00018356,2]
[408250193,1773315042804,-88537.23,0.00018356,2]
[408250194,1773315042814,-878.0,0.00018396,2]
[408250195,1773315042824,-200.0,0.00018447,2]
[408250196,1773315042834,-608.00046403,0.00018456,2]
[408250197,1773315042844,-1083.42,0.00018456,2]
[408250198,1773315042855,-2500.0,0.00018464,2]
[408250199,1773315042865,-2500.0,0.00018464,2]
[408250201,1773315042875,-151.0,0.00018493,2]
[408250202,1773315042892,-151.0,0.00018493,2]
[408250204,1773315042901,-595.64,0.00018528,2]
[408250206,1773315043048,-151.0,0.00018533,2]
[408250208,1773315043058,-151.0,0.00018533,2]
[408250210,1773315043068,-9999.99,0.00018533,2]
[408250211,1773315043077,-29999.99,0.00018533,2]
[408250212,1773315043087,-13682.15,0.00018533,2]
[408250213,1773315043096,-1589.0,0.00018578,2]
[408250214,1773315043106,-577.0,0.00018589,2]
[408250215,1773315043116,-577.0,0.0001861,2]
[408250216,1773315043125,-48306.71665856,0.00018658,2]
[408250217,1773315043134,-1539.63237117,0.00018668,2]
[408250218,1773315043143,-1500.0,0.00018668,2]
[408250220,1773315043153,-878.0,0.0001867,2]
[408250221,1773315043162,-446.36679667,0.0001867,2]
[408250222,1773315043172,-2351.0,0.00018707,2]
[408250223,1773315043182,-1083.42,0.0001873,2]
[408250224,1773315043191,-168.0,0.0001878,2]
[408250225,1773315043199,-187.78006525,0.00018782,2]
[408250226,1773315043208,-200.0,0.00018782,2]
[408250227,1773315043217,-168.0,0.00018847,2]
[408250228,1773315043229,-168.0,0.00018852,2]
[408250229,1773315043239,-484.79,0.00018886,2]
[408250230,1773315043248,-168.0,0.00018899,2]
[408250231,1773315043257,-1600.0,0.00018904,2]
[408250232,1773315043266,-246.55,0.00018916,2]
[408250233,1773315043275,-168.0,0.00018924,2]
[408250234,1773315043284,-500.0,0.00018938,2]
[408250235,1773315043294,-179.51,0.00018944,2]
[408250236,1773315043303,-250.0,0.0001898,2]
[408250237,1773315043312,-2666.605,0.00018985,2]
[408250238,1773315043322,-175.475,0.00018985,2]
[408250239,1773315043331,-510.84283105,0.00018994,2]
[408250240,1773315043341,-151.0,0.00018994,2]
[408250241,1773315043351,-200.0,0.00018995,2]
[408250242,1773315043361,-350.0,0.00019,2]
[408250243,1773315043370,-3196.0,0.00019,5]
[408250244,1773315043379,-1083.42,0.00019004,2]
[408250245,1773315043388,-2003.02080856,0.00019012,2]
[408250246,1773315043399,-168.0,0.00019038,2]
[408250247,1773315043410,-514.68332099,0.00019049,2]
[408250248,1773315043419,-500.0,0.00019055,2]
[408250249,1773315043430,-48306.71665856,0.00019072,2]
[408250250,1773315043439,-160.0,0.00019095,2]
[408250251,1773315043448,-1663.0,0.00019139,2]
[408250252,1773315043458,-1663.0,0.0001915,2]
[408250253,1773315043468,-316.850194,0.00019178,2]
[408250254,1773315043477,-316.850194,0.00019178,2]
[408250255,1773315043486,-316.850194,0.00019178,2]
[408250256,1773315043496,-316.850194,0.00019178,2]
[408250258,1773315043505,-154.242032,0.00019178,2]
[408250259,1773315043515,-151.0,0.00019178,2]
[408250260,1773315043524,-265.244161,0.00019178,2]
[408250261,1773315043536,-265.244161,0.00019178,2]
[408250262,1773315043545,-265.244161,0.00019178,2]
[408250263,1773315043555,-265.244161,0.00019178,2]
[408250264,1773315043564,-265.244161,0.00019178,2]
[408250265,1773315043574,-265.244161,0.00019178,2]
[408250266,1773315043583,-265.244161,0.00019178,2]
[408250267,1773315043593,-265.244161,0.00019178,2]
[408250268,1773315043603,-151.0,0.00019178,2]
[408250269,1773315043612,-151.0,0.00019178,2]
[408250270,1773315043622,-2000.0,0.000192,2]
[408250271,1773315043633,-587.0,0.00019202,2]
[408250272,1773315043643,-2000.0,0.00019216,2]
[408250273,1773315043652,-595.64,0.00019259,2]
[408250274,1773315043662,-1083.42,0.00019278,2]
[408250275,1773315043673,-168.0,0.00019282,2]
[408250276,1773315043683,-194.72792766,0.0001933,2]
[408250277,1773315043693,-200.0,0.0001933,2]
[408250278,1773315043703,-300.0,0.00019338,2]
[408250279,1773315043712,-151.0,0.00019339,2]
[408250280,1773315043721,-500.0,0.00019373,2]
[408250281,1773315043730,-500.0,0.00019373,2]
[408250282,1773315043739,-500.0,0.00019373,2]
[408250283,1773315043748,-3665.0,0.00019374,2]
[408250284,1773315043758,-3133.0,0.00019374,2]
[408250285,1773315043768,-500.0,0.00019382,2]
[408250286,1773315043778,-500.0,0.00019382,2]
[408250287,1773315043787,-500.0,0.00019382,2]
[408250288,1773315043796,-168.0,0.00019392,2]
[408250289,1773315043808,-10813.24223566,0.00019405,2]
[408250290,1773315043817,-370.06146341,0.00019408,2]
[408250291,1773315043827,-150.74,0.00019478,2]
[408250292,1773315043836,-1663.0,0.00019479,2]
[408250293,1773315043846,-1663.0,0.00019507,2]
[408250294,1773315043865,-180.56,0.00019535,2]
[408250295,1773315043875,-200.0,0.00019543,2]
[408250296,1773315043888,-193.201322,0.00019627,2]
[408250297,1773315043897,-193.201322,0.00019627,2]
[408250298,1773315043907,-193.201322,0.00019627,2]
[408250299,1773315043918,-193.201322,0.00019627,2]
[408250300,1773315043930,-1663.0,0.00019671,2]
[408250301,1773315043939,-152.0,0.00019685,3]
[408250302,1773315043949,-1663.0,0.00019685,2]
[408250303,1773315043959,-500.0,0.00019726,2]
[408250304,1773315043968,-150.0,0.00019726,2]
[408250305,1773315043977,-150.0,0.00019726,2]
[408250306,1773315043987,-150.0,0.00019726,2]